[Event "Titled Tuesday Blitz November 14 Early 2023"]
[White "Demchenko, Anton"]
[Black "Ilkhomi, Jaloliddin"]
[WhiteFideId "4160258"]
[BlackFideId "14700948"]
[WhiteElo "3004"]
[BlackElo "2704"]
[Result "1-0"]
[Round "9"]
[TimeControl "180+1"]
[Date "2023.11.14"]
[WhiteClock "0:00:31"]
[BlackClock "0:00:02"]
[Board "36"]

1. e4 {[%clk 0:02:57]}  e6 {[%clk 0:02:59]} 2. d3 {[%clk 0:02:53]}  d5 {[%clk 0:02:59]} 3. Nd2 {[%clk 0:02:54]}  c5 {[%clk 0:02:58]} 4. Ngf3 {[%clk 0:02:53]}  Nc6 {[%clk 0:02:58]} 5. g3 {[%clk 0:02:54]}  Bd6 {[%clk 0:02:58]} 6. Bg2 {[%clk 0:02:50]}  Nge7 {[%clk 0:02:58]} 7. O-O {[%clk 0:02:49]}  O-O {[%clk 0:02:58]} 8. Nh4 {[%clk 0:02:42]}  Qc7 {[%clk 0:02:49]} 9. f4 {[%clk 0:02:41]}  f6 {[%clk 0:02:46]} 10. Ndf3 {[%clk 0:02:35]}  d4 {[%clk 0:02:45]} 11. Bd2 {[%clk 0:02:22]}  e5 {[%clk 0:02:44]} 12. f5 {[%clk 0:02:20]}  Kf7 {[%clk 0:02:33]} 13. Ne1 {[%clk 0:02:14]}  Ke8 {[%clk 0:02:17]} 14. Qh5+ {[%clk 0:02:12]}  Kd7 {[%clk 0:01:59]} 15. Qxh7 {[%clk 0:02:12]}  Rg8 {[%clk 0:01:58]} 16. c3 {[%clk 0:02:07]}  b6 {[%clk 0:01:55]} 17. Qh5 {[%clk 0:01:58]}  Rf8 {[%clk 0:01:48]} 18. Rc1 {[%clk 0:01:52]}  Ba6 {[%clk 0:01:46]} 19. c4 {[%clk 0:01:50]}  Rh8 {[%clk 0:01:16]} 20. Qg4 {[%clk 0:01:50]}  Rhg8 {[%clk 0:01:03]} 21. Bf3 {[%clk 0:01:49]}  Kc8 {[%clk 0:01:03]} 22. Qh3 {[%clk 0:01:43]}  Kb7 {[%clk 0:01:01]} 23. Bh5 {[%clk 0:01:42]}  Rh8 {[%clk 0:01:01]} 24. Qg4 {[%clk 0:01:38]}  Raf8 {[%clk 0:00:39]} 25. a3 {[%clk 0:01:36]}  Ka8 {[%clk 0:00:37]} 26. Rb1 {[%clk 0:01:33]}  b5 {[%clk 0:00:32]} 27. b3 {[%clk 0:01:29]}  Nc8 {[%clk 0:00:21]} 28. Ng6 {[%clk 0:01:27]}  Nb6 {[%clk 0:00:20]} 29. Nxf8 {[%clk 0:01:23]}  Rxf8 {[%clk 0:00:20]} 30. Qd1 {[%clk 0:01:18]}  Rh8 {[%clk 0:00:19]} 31. Be2 {[%clk 0:01:19]}  b4 {[%clk 0:00:16]} 32. a4 {[%clk 0:01:18]}  Na5 {[%clk 0:00:16]} 33. h4 {[%clk 0:01:18]}  Bb7 {[%clk 0:00:16]} 34. Bf3 {[%clk 0:01:16]}  Nc8 {[%clk 0:00:17]} 35. Ng2 {[%clk 0:01:16]}  Ne7 {[%clk 0:00:17]} 36. h5 {[%clk 0:01:15]}  Nac6 {[%clk 0:00:17]} 37. Nh4 {[%clk 0:01:15]}  Nd8 {[%clk 0:00:18]} 38. Ng6 {[%clk 0:01:15]}  Nxg6 {[%clk 0:00:18]} 39. hxg6 {[%clk 0:01:16]}  Nc6 {[%clk 0:00:19]} 40. Kg2 {[%clk 0:01:16]}  Ne7 {[%clk 0:00:19]} 41. Rh1 {[%clk 0:01:16]}  Rg8 {[%clk 0:00:19]} 42. Rh7 {[%clk 0:01:14]}  a5 {[%clk 0:00:19]} 43. Qe2 {[%clk 0:01:14]}  Qd8 {[%clk 0:00:20]} 44. Rbh1 {[%clk 0:01:14]}  Ka7 {[%clk 0:00:19]} 45. Kg1 {[%clk 0:01:10]}  Qc8 {[%clk 0:00:18]} 46. g4 {[%clk 0:01:08]}  Qe8 {[%clk 0:00:17]} 47. Qh2 {[%clk 0:01:05]}  Kb6 {[%clk 0:00:17]} 48. Kf2 {[%clk 0:01:06]}  Bc8 {[%clk 0:00:12]} 49. Qh5 {[%clk 0:01:04]}  Bd7 {[%clk 0:00:09]} 50. Bd1 {[%clk 0:00:58]}  Bc6 {[%clk 0:00:09]} 51. Ke1 {[%clk 0:00:59]}  Bd7 {[%clk 0:00:09]} 52. g5 {[%clk 0:00:58]}  fxg5 {[%clk 0:00:07]} 53. Bxg5 {[%clk 0:00:58]}  Bc6 {[%clk 0:00:05]} 54. Rh8 {[%clk 0:00:55]}  Nxf5 {[%clk 0:00:02]} 55. Rxg8 {[%clk 0:00:52]}  Qxg8 {[%clk 0:00:03]} 56. exf5 {[%clk 0:00:52]}  e4 {[%clk 0:00:04]} 57. Qh8 {[%clk 0:00:48]}  Qxh8 {[%clk 0:00:02]} 58. Rxh8 {[%clk 0:00:48]}  exd3 {[%clk 0:00:03]} 59. Kd2 {[%clk 0:00:41]}  Bd7 {[%clk 0:00:03]} 60. Bg4 {[%clk 0:00:39]}  Be5 {[%clk 0:00:02]} 61. Rf8 {[%clk 0:00:36]}  Bd6 {[%clk 0:00:02]} 62. Rf7 {[%clk 0:00:36]}  Bc6 {[%clk 0:00:02]} 63. f6 {[%clk 0:00:35]}  Bg3 {[%clk 0:00:03]} 64. fxg7 {[%clk 0:00:31]}  Bxa4 {[%clk 0:00:02]} 1-0


[Site "https://www.chess.com"]

[Event "Titled Tuesday Blitz November 14 Early 2023"]
[White "Raahul V S"]
[Black "Ashraf, Artin"]
[WhiteFideId "25035525"]
[BlackFideId "22514805"]
[WhiteElo "2687"]
[BlackElo "2917"]
[Result "0-1"]
[Round "9"]
[TimeControl "180+1"]
[Date "2023.11.14"]
[WhiteClock "0:00:00"]
[BlackClock "0:00:15"]
[Board "37"]

1. b3 {[%clk 0:03:00]}  b6 {[%clk 0:02:48]} 2. Bb2 {[%clk 0:03:00]}  Bb7 {[%clk 0:02:48]} 3. e3 {[%clk 0:03:00]}  e6 {[%clk 0:02:49]} 4. f4 {[%clk 0:02:58]}  f5 {[%clk 0:02:49]} 5. Qh5+ {[%clk 0:02:54]}  g6 {[%clk 0:02:49]} 6. Qd1 {[%clk 0:02:39]}  Nf6 {[%clk 0:02:37]} 7. Nf3 {[%clk 0:02:38]}  Bg7 {[%clk 0:02:34]} 8. Be2 {[%clk 0:02:39]}  O-O {[%clk 0:02:34]} 9. O-O {[%clk 0:02:39]}  d6 {[%clk 0:02:32]} 10. Qe1 {[%clk 0:02:23]}  c5 {[%clk 0:02:30]} 11. d3 {[%clk 0:02:14]}  Nc6 {[%clk 0:02:27]} 12. Nc3 {[%clk 0:02:14]}  Nd5 {[%clk 0:02:22]} 13. Qd2 {[%clk 0:02:10]}  b5 {[%clk 0:02:22]} 14. Rab1 {[%clk 0:02:08]}  Nxc3 {[%clk 0:02:16]} 15. Bxc3 {[%clk 0:02:09]}  Bxc3 {[%clk 0:02:16]} 16. Qxc3 {[%clk 0:02:10]}  b4 {[%clk 0:02:17]} 17. Qd2 {[%clk 0:01:49]}  Ne7 {[%clk 0:02:16]} 18. c4 {[%clk 0:01:45]}  bxc3 {[%clk 0:02:12]} 19. Qxc3 {[%clk 0:01:45]}  Nd5 {[%clk 0:02:13]} 20. Qd2 {[%clk 0:01:45]}  Qb6 {[%clk 0:02:12]} 21. Kh1 {[%clk 0:01:44]}  a5 {[%clk 0:02:09]} 22. Ng5 {[%clk 0:01:34]}  Qb4 {[%clk 0:02:07]} 23. Qc1 {[%clk 0:01:25]}  h6 {[%clk 0:01:32]} 24. a3 {[%clk 0:01:18]}  Qc3 {[%clk 0:01:32]} 25. Nf3 {[%clk 0:00:34]}  Qxc1 {[%clk 0:01:29]} 26. Rfxc1 {[%clk 0:00:35]}  Nxe3 {[%clk 0:01:29]} 27. d4 {[%clk 0:00:35]}  cxd4 {[%clk 0:01:23]} 28. Nxd4 {[%clk 0:00:35]}  Nxg2 {[%clk 0:01:18]} 29. Kg1 {[%clk 0:00:31]}  Nxf4 {[%clk 0:01:17]} 30. Bf1 {[%clk 0:00:28]}  Rac8 {[%clk 0:01:14]} 31. Nb5 {[%clk 0:00:28]}  Rfd8 {[%clk 0:00:57]} 32. Rc4 {[%clk 0:00:27]}  Rxc4 {[%clk 0:00:53]} 33. bxc4 {[%clk 0:00:28]}  Be4 {[%clk 0:00:49]} 34. Rd1 {[%clk 0:00:26]}  d5 {[%clk 0:00:47]} 35. c5 {[%clk 0:00:26]}  Rc8 {[%clk 0:00:46]} 36. Rc1 {[%clk 0:00:24]}  Bd3 {[%clk 0:00:47]} 37. Nd6 {[%clk 0:00:19]}  Rc6 {[%clk 0:00:46]} 38. Nb7 {[%clk 0:00:18]}  Rc7 {[%clk 0:00:44]} 39. c6 {[%clk 0:00:17]}  Bc4 {[%clk 0:00:31]} 40. Bxc4 {[%clk 0:00:15]}  Rxc6 {[%clk 0:00:29]} 41. Nxa5 {[%clk 0:00:15]}  Rc5 {[%clk 0:00:27]} 42. Kf2 {[%clk 0:00:11]}  Rxa5 {[%clk 0:00:25]} 43. Bf1 {[%clk 0:00:12]}  Rxa3 {[%clk 0:00:25]} 44. Rc7 {[%clk 0:00:11]}  g5 {[%clk 0:00:24]} 45. Bb5 {[%clk 0:00:09]}  Ra2+ {[%clk 0:00:22]} 46. Ke3 {[%clk 0:00:09]}  Rxh2 {[%clk 0:00:21]} 47. Kd4 {[%clk 0:00:09]}  Ng6 {[%clk 0:00:14]} 48. Be8 {[%clk 0:00:08]}  Rh4+ {[%clk 0:00:15]} 49. Kc3 {[%clk 0:00:05]}  Ne5 {[%clk 0:00:15]} 50. Re7 {[%clk 0:00:05]}  Rc4+ {[%clk 0:00:15]} 51. Kb3 {[%clk 0:00:05]}  Nd3 {[%clk 0:00:15]} 52. Ka2 {[%clk 0:00:02]}  Kf8 {[%clk 0:00:15]} 53. Rxe6 {[%clk 0:00:00]}  Re4 {[%clk 0:00:15]} 0-1


[Site "https://www.chess.com"]

[Event "Titled Tuesday Blitz November 14 Early 2023"]
[White "Mladenovic, Stefan"]
[Black "Yeletsky, Ivan"]
[WhiteFideId "942227"]
[BlackFideId "24180327"]
[WhiteElo "2692"]
[BlackElo "2895"]
[Result "0-1"]
[Round "9"]
[TimeControl "180+1"]
[Date "2023.11.14"]
[WhiteClock "0:00:00"]
[BlackClock "0:01:35"]
[Board "38"]

1. d4 {[%clk 0:03:00]}  d5 {[%clk 0:02:58]} 2. Bf4 {[%clk 0:03:00]}  c5 {[%clk 0:02:55]} 3. e3 {[%clk 0:03:00]}  cxd4 {[%clk 0:02:55]} 4. exd4 {[%clk 0:03:00]}  Nc6 {[%clk 0:02:56]} 5. Nf3 {[%clk 0:03:00]}  Bf5 {[%clk 0:02:56]} 6. c3 {[%clk 0:03:00]}  e6 {[%clk 0:02:57]} 7. Nbd2 {[%clk 0:03:00]}  Bd6 {[%clk 0:02:56]} 8. Bxd6 {[%clk 0:03:00]}  Qxd6 {[%clk 0:02:57]} 9. Bb5 {[%clk 0:03:00]}  Ne7 {[%clk 0:02:57]} 10. O-O {[%clk 0:02:59]}  O-O {[%clk 0:02:58]} 11. Re1 {[%clk 0:02:59]}  a6 {[%clk 0:02:57]} 12. Bf1 {[%clk 0:02:59]}  b5 {[%clk 0:02:56]} 13. a3 {[%clk 0:02:49]}  Rab8 {[%clk 0:02:56]} 14. Ne5 {[%clk 0:02:49]}  a5 {[%clk 0:02:54]} 15. b4 {[%clk 0:02:39]}  Nxe5 {[%clk 0:02:51]} 16. dxe5 {[%clk 0:02:36]}  Qc7 {[%clk 0:02:50]} 17. Nb3 {[%clk 0:02:24]}  Qxc3 {[%clk 0:02:44]} 18. Nxa5 {[%clk 0:02:20]}  Bc2 {[%clk 0:02:15]} 19. Qc1 {[%clk 0:02:17]}  Rfc8 {[%clk 0:02:14]} 20. Ra2 {[%clk 0:01:47]}  d4 {[%clk 0:02:09]} 21. Qa1 {[%clk 0:00:41]}  d3 {[%clk 0:01:51]} 22. Qxc3 {[%clk 0:00:08]}  Rxc3 {[%clk 0:01:52]} 23. Rea1 {[%clk 0:00:09]}  d2 {[%clk 0:01:40]} 24. Be2 {[%clk 0:00:09]}  Rd8 {[%clk 0:01:40]} 25. Nb7 {[%clk 0:00:03]}  Bb3 {[%clk 0:01:35]} 26. Rb2 {[%clk 0:00:00]}  Rc1+ {[%clk 0:01:35]} 0-1


[Site "https://www.chess.com"]

[Event "Titled Tuesday Blitz November 14 Early 2023"]
[White "Yaran, Siar"]
[Black "AlmasRakhmatullaev"]
[WhiteFideId "6323006"]
[WhiteElo "2681"]
[BlackElo "2868"]
[Result "1-0"]
[Round "9"]
[TimeControl "180+1"]
[Date "2023.11.14"]
[WhiteClock "0:00:06"]
[BlackClock "0:00:05"]
[Board "39"]

1. e4 {[%clk 0:02:58]}  e5 {[%clk 0:02:56]} 2. Nf3 {[%clk 0:02:57]}  Nc6 {[%clk 0:02:56]} 3. Bc4 {[%clk 0:02:57]}  Nf6 {[%clk 0:02:56]} 4. d3 {[%clk 0:02:56]}  Be7 {[%clk 0:02:55]} 5. O-O {[%clk 0:02:56]}  d6 {[%clk 0:02:54]} 6. a4 {[%clk 0:02:55]}  h6 {[%clk 0:02:54]} 7. a5 {[%clk 0:02:54]}  a6 {[%clk 0:02:52]} 8. Re1 {[%clk 0:02:53]}  Bg4 {[%clk 0:02:51]} 9. c3 {[%clk 0:02:48]}  Bh5 {[%clk 0:02:40]} 10. Nbd2 {[%clk 0:02:40]}  Qd7 {[%clk 0:02:34]} 11. Nf1 {[%clk 0:02:32]}  g5 {[%clk 0:02:19]} 12. Ng3 {[%clk 0:02:18]}  Bg6 {[%clk 0:02:17]} 13. d4 {[%clk 0:02:04]}  O-O-O {[%clk 0:02:03]} 14. d5 {[%clk 0:01:54]}  Nb8 {[%clk 0:01:58]} 15. b4 {[%clk 0:01:32]}  Rdg8 {[%clk 0:01:55]} 16. Bf1 {[%clk 0:01:21]}  Ne8 {[%clk 0:01:07]} 17. c4 {[%clk 0:01:00]}  g4 {[%clk 0:01:04]} 18. Nd2 {[%clk 0:00:57]}  h5 {[%clk 0:01:04]} 19. Bd3 {[%clk 0:00:54]}  h4 {[%clk 0:00:55]} 20. Nf5 {[%clk 0:00:51]}  Bxf5 {[%clk 0:00:55]} 21. exf5 {[%clk 0:00:51]}  g3 {[%clk 0:00:56]} 22. fxg3 {[%clk 0:00:47]}  hxg3 {[%clk 0:00:55]} 23. h3 {[%clk 0:00:47]}  Nf6 {[%clk 0:00:49]} 24. Ne4 {[%clk 0:00:46]}  Rh4 {[%clk 0:00:38]} 25. Qf3 {[%clk 0:00:37]}  Nxe4 {[%clk 0:00:28]} 26. Rxe4 {[%clk 0:00:29]}  Rxe4 {[%clk 0:00:21]} 27. Bxe4 {[%clk 0:00:30]}  Bf6 {[%clk 0:00:22]} 28. Be3 {[%clk 0:00:24]}  Qe7 {[%clk 0:00:22]} 29. c5 {[%clk 0:00:21]}  Bg5 {[%clk 0:00:19]} 30. c6 {[%clk 0:00:14]}  Bxe3+ {[%clk 0:00:19]} 31. Qxe3 {[%clk 0:00:15]}  bxc6 {[%clk 0:00:11]} 32. dxc6 {[%clk 0:00:16]}  Qh4 {[%clk 0:00:09]} 33. Rf1 {[%clk 0:00:08]}  f6 {[%clk 0:00:04]} 34. Bd5 {[%clk 0:00:06]}  Re8 {[%clk 0:00:03]} 35. Rd1 {[%clk 0:00:04]}  Qxb4 {[%clk 0:00:03]} 36. Be6+ {[%clk 0:00:05]}  Kd8 {[%clk 0:00:03]} 37. Qh6 {[%clk 0:00:05]}  Nxc6 {[%clk 0:00:02]} 38. Qxf6+ {[%clk 0:00:05]}  Ne7 {[%clk 0:00:03]} 39. Qg5 {[%clk 0:00:06]}  Qxa5 {[%clk 0:00:03]} 40. f6 {[%clk 0:00:05]}  Qc5+ {[%clk 0:00:03]} 41. Kh1 {[%clk 0:00:05]}  Qc2 {[%clk 0:00:04]} 42. Rf1 {[%clk 0:00:04]}  c5 {[%clk 0:00:03]} 43. fxe7+ {[%clk 0:00:04]}  Kc7 {[%clk 0:00:03]} 44. Bf7 {[%clk 0:00:03]}  Rb8 {[%clk 0:00:02]} 45. e8=Q {[%clk 0:00:03]}  Rxe8 {[%clk 0:00:02]} 46. Bxe8 {[%clk 0:00:04]}  c4 {[%clk 0:00:02]} 47. Qxg3 {[%clk 0:00:04]}  a5 {[%clk 0:00:02]} 48. Bg6 {[%clk 0:00:04]}  Qd2 {[%clk 0:00:02]} 49. Kh2 {[%clk 0:00:04]}  c3 {[%clk 0:00:02]} 50. Rf7+ {[%clk 0:00:04]}  Kc6 {[%clk 0:00:02]} 51. Rf2 {[%clk 0:00:05]}  Kc5 {[%clk 0:00:03]} 52. Rxd2 {[%clk 0:00:05]}  cxd2 {[%clk 0:00:04]} 53. Qc3+ {[%clk 0:00:06]}  Kb6 {[%clk 0:00:05]} 54. Qxd2 {[%clk 0:00:06]}  Kc7 {[%clk 0:00:05]} 55. Qd5 {[%clk 0:00:07]}  a4 {[%clk 0:00:05]} 56. Qc4+ {[%clk 0:00:06]}  Kd7 {[%clk 0:00:06]} 57. Qxa4+ {[%clk 0:00:07]}  Ke7 {[%clk 0:00:06]} 58. Qg4 {[%clk 0:00:06]}  Kf6 {[%clk 0:00:07]} 59. Be4 {[%clk 0:00:06]}  d5 {[%clk 0:00:05]} 60. Qf5+ {[%clk 0:00:06]} 1-0


[Site "https://www.chess.com"]

[Event "Titled Tuesday Blitz November 14 Early 2023"]
[White "Madaminov, Mukhiddin"]
[Black "Ovetchkin, Roman"]
[WhiteFideId "14210703"]
[BlackFideId "4119991"]
[WhiteElo "2868"]
[BlackElo "2670"]
[Result "1-0"]
[Round "9"]
[TimeControl "180+1"]
[Date "2023.11.14"]
[WhiteClock "0:00:41"]
[BlackClock "0:00:21"]
[Board "40"]

1. e4 {[%clk 0:03:00]}  c6 {[%clk 0:02:59]} 2. Nf3 {[%clk 0:02:59]}  d5 {[%clk 0:03:00]} 3. Nc3 {[%clk 0:02:58]}  Bg4 {[%clk 0:02:59]} 4. h3 {[%clk 0:02:57]}  Bxf3 {[%clk 0:02:59]} 5. Qxf3 {[%clk 0:02:58]}  e6 {[%clk 0:02:59]} 6. Be2 {[%clk 0:02:56]}  g6 {[%clk 0:02:57]} 7. d4 {[%clk 0:02:49]}  Bg7 {[%clk 0:02:57]} 8. Be3 {[%clk 0:02:46]}  Nd7 {[%clk 0:02:53]} 9. O-O {[%clk 0:02:42]}  Ne7 {[%clk 0:02:43]} 10. a4 {[%clk 0:02:36]}  O-O {[%clk 0:02:42]} 11. Rfd1 {[%clk 0:02:30]}  h6 {[%clk 0:02:19]} 12. Bf1 {[%clk 0:02:28]}  f5 {[%clk 0:02:14]} 13. exd5 {[%clk 0:02:25]}  exd5 {[%clk 0:02:09]} 14. Ne2 {[%clk 0:01:54]}  f4 {[%clk 0:01:44]} 15. Bd2 {[%clk 0:01:33]}  g5 {[%clk 0:01:43]} 16. Bb4 {[%clk 0:01:32]}  Rf7 {[%clk 0:01:30]} 17. Bxe7 {[%clk 0:01:30]}  Qxe7 {[%clk 0:01:28]} 18. Nc1 {[%clk 0:01:30]}  Qb4 {[%clk 0:01:17]} 19. Nb3 {[%clk 0:01:01]}  Re8 {[%clk 0:01:11]} 20. Qc3 {[%clk 0:00:55]}  Qxc3 {[%clk 0:00:50]} 21. bxc3 {[%clk 0:00:56]}  f3 {[%clk 0:00:51]} 22. Re1 {[%clk 0:00:53]}  Rxe1 {[%clk 0:00:47]} 23. Rxe1 {[%clk 0:00:53]}  fxg2 {[%clk 0:00:47]} 24. Kxg2 {[%clk 0:00:52]}  Nb6 {[%clk 0:00:42]} 25. a5 {[%clk 0:00:50]}  Na4 {[%clk 0:00:40]} 26. Re3 {[%clk 0:00:47]}  Bf8 {[%clk 0:00:38]} 27. c4 {[%clk 0:00:44]}  Kg7 {[%clk 0:00:33]} 28. cxd5 {[%clk 0:00:41]}  cxd5 {[%clk 0:00:33]} 29. Bb5 {[%clk 0:00:42]}  Nc3 {[%clk 0:00:21]} 30. Rxc3 {[%clk 0:00:41]} 1-0


[Site "https://www.chess.com"]

[Event "Titled Tuesday Blitz November 14 Early 2023"]
[White "CrazyAdvenTures"]
[Black "Gontcharov, Vladislav"]
[BlackFideId "4123492"]
[WhiteElo "2806"]
[BlackElo "2618"]
[Result "1-0"]
[Round "9"]
[TimeControl "180+1"]
[Date "2023.11.14"]
[WhiteClock "0:00:38"]
[BlackClock "0:00:00"]
[Board "45"]

1. e4 {[%clk 0:02:56]}  e6 {[%clk 0:02:59]} 2. d4 {[%clk 0:02:56]}  d5 {[%clk 0:02:58]} 3. Nc3 {[%clk 0:02:57]}  Nc6 {[%clk 0:02:53]} 4. e5 {[%clk 0:02:52]}  f6 {[%clk 0:02:51]} 5. Nf3 {[%clk 0:02:49]}  fxe5 {[%clk 0:02:50]} 6. dxe5 {[%clk 0:02:50]}  Nh6 {[%clk 0:02:48]} 7. Bf4 {[%clk 0:02:39]}  Nf7 {[%clk 0:02:40]} 8. h4 {[%clk 0:02:37]}  Bd7 {[%clk 0:02:26]} 9. Qd2 {[%clk 0:02:24]}  Qe7 {[%clk 0:02:22]} 10. h5 {[%clk 0:02:12]}  O-O-O {[%clk 0:02:18]} 11. O-O-O {[%clk 0:02:10]}  a6 {[%clk 0:02:09]} 12. Be2 {[%clk 0:02:03]}  Qb4 {[%clk 0:01:51]} 13. Rh4 {[%clk 0:01:56]}  Be7 {[%clk 0:01:49]} 14. Rg4 {[%clk 0:01:51]}  Rdg8 {[%clk 0:01:27]} 15. a3 {[%clk 0:01:35]}  Qa5 {[%clk 0:01:25]} 16. Kb1 {[%clk 0:01:26]}  g6 {[%clk 0:01:14]} 17. Be3 {[%clk 0:01:17]}  Ncxe5 {[%clk 0:01:11]} 18. Nxe5 {[%clk 0:01:05]}  Nxe5 {[%clk 0:01:10]} 19. Rg3 {[%clk 0:00:59]}  Bd6 {[%clk 0:01:07]} 20. Bd4 {[%clk 0:00:53]}  gxh5 {[%clk 0:01:04]} 21. b4 {[%clk 0:00:46]}  Qxa3 {[%clk 0:01:00]} 22. Nxd5 {[%clk 0:00:44]}  Rxg3 {[%clk 0:00:52]} 23. Bb2 {[%clk 0:00:44]}  Qa4 {[%clk 0:00:40]} 24. Nb6+ {[%clk 0:00:43]}  cxb6 {[%clk 0:00:36]} 25. Qxd6 {[%clk 0:00:44]}  Qc6 {[%clk 0:00:13]} 26. fxg3 {[%clk 0:00:32]}  Qxd6 {[%clk 0:00:12]} 27. Rxd6 {[%clk 0:00:33]}  Nc6 {[%clk 0:00:12]} 28. Bxh8 {[%clk 0:00:32]}  Kc7 {[%clk 0:00:09]} 29. Rd1 {[%clk 0:00:32]}  Nxb4 {[%clk 0:00:08]} 30. Be5+ {[%clk 0:00:32]}  Kc8 {[%clk 0:00:09]} 31. Bxh5 {[%clk 0:00:33]}  Nd5 {[%clk 0:00:08]} 32. Bf3 {[%clk 0:00:32]}  Bc6 {[%clk 0:00:08]} 33. Bxd5 {[%clk 0:00:32]}  Bxd5 {[%clk 0:00:07]} 34. Rh1 {[%clk 0:00:33]}  Be4 {[%clk 0:00:06]} 35. Rh4 {[%clk 0:00:32]}  Bf5 {[%clk 0:00:06]} 36. Rc4+ {[%clk 0:00:33]}  Kd8 {[%clk 0:00:05]} 37. Rc7 {[%clk 0:00:34]}  b5 {[%clk 0:00:04]} 38. Rxb7 {[%clk 0:00:34]}  h5 {[%clk 0:00:04]} 39. Ra7 {[%clk 0:00:34]}  b4 {[%clk 0:00:04]} 40. Rxa6 {[%clk 0:00:34]}  b3 {[%clk 0:00:05]} 41. Kc1 {[%clk 0:00:33]}  bxc2 {[%clk 0:00:05]} 42. Ra2 {[%clk 0:00:33]}  Kd7 {[%clk 0:00:04]} 43. Rxc2 {[%clk 0:00:33]}  Bxc2 {[%clk 0:00:03]} 44. Kxc2 {[%clk 0:00:34]}  Kc6 {[%clk 0:00:04]} 45. Kd3 {[%clk 0:00:35]}  Kd5 {[%clk 0:00:05]} 46. Bb8 {[%clk 0:00:36]}  e5 {[%clk 0:00:06]} 47. Ke3 {[%clk 0:00:36]}  Ke6 {[%clk 0:00:03]} 48. Ke4 {[%clk 0:00:36]}  Kf6 {[%clk 0:00:03]} 49. Bxe5+ {[%clk 0:00:37]}  Kg5 {[%clk 0:00:04]} 50. Bf4+ {[%clk 0:00:37]}  Kg4 {[%clk 0:00:04]} 51. Ke5 {[%clk 0:00:37]}  h4 {[%clk 0:00:03]} 52. gxh4 {[%clk 0:00:38]}  Kxh4 {[%clk 0:00:00]} 53. Kf5 {[%clk 0:00:38]} 1-0


[Site "https://www.chess.com"]

[Event "Titled Tuesday Blitz November 14 Early 2023"]
[White "Kopylov, Alexander A."]
[Black "Aaditya Dhingra"]
[WhiteFideId "4164857"]
[BlackFideId "25678191"]
[WhiteElo "2802"]
[BlackElo "2615"]
[Result "0-1"]
[Round "9"]
[TimeControl "180+1"]
[Date "2023.11.14"]
[WhiteClock "0:01:13"]
[BlackClock "0:01:15"]
[Board "46"]

1. d4 {[%clk 0:03:00]}  g6 {[%clk 0:02:56]} 2. Nf3 {[%clk 0:03:01]}  Bg7 {[%clk 0:02:53]} 3. g3 {[%clk 0:03:02]}  c5 {[%clk 0:02:45]} 4. d5 {[%clk 0:03:01]}  Nf6 {[%clk 0:02:43]} 5. Bg2 {[%clk 0:03:02]}  O-O {[%clk 0:02:42]} 6. O-O {[%clk 0:03:03]}  b5 {[%clk 0:02:36]} 7. Re1 {[%clk 0:03:01]}  d6 {[%clk 0:02:33]} 8. e4 {[%clk 0:03:01]}  Nbd7 {[%clk 0:02:33]} 9. h3 {[%clk 0:02:58]}  a5 {[%clk 0:02:32]} 10. a4 {[%clk 0:02:36]}  b4 {[%clk 0:02:30]} 11. c4 {[%clk 0:02:37]}  Ba6 {[%clk 0:02:26]} 12. Nbd2 {[%clk 0:02:33]}  Re8 {[%clk 0:02:21]} 13. Rb1 {[%clk 0:02:27]}  e6 {[%clk 0:02:14]} 14. b3 {[%clk 0:02:26]}  exd5 {[%clk 0:02:13]} 15. exd5 {[%clk 0:02:26]}  Rxe1+ {[%clk 0:02:11]} 16. Qxe1 {[%clk 0:02:26]}  Qc7 {[%clk 0:02:07]} 17. Nf1 {[%clk 0:02:22]}  Re8 {[%clk 0:02:03]} 18. Be3 {[%clk 0:02:22]}  Ne4 {[%clk 0:02:00]} 19. g4 {[%clk 0:02:04]}  Bc8 {[%clk 0:01:50]} 20. Ng3 {[%clk 0:02:00]}  Nxg3 {[%clk 0:01:46]} 21. fxg3 {[%clk 0:02:00]}  Bd4 {[%clk 0:01:44]} 22. Nxd4 {[%clk 0:01:53]}  cxd4 {[%clk 0:01:43]} 23. Bxd4 {[%clk 0:01:54]}  Rxe1+ {[%clk 0:01:43]} 24. Rxe1 {[%clk 0:01:55]}  Kf8 {[%clk 0:01:34]} 25. g5 {[%clk 0:01:45]}  Nc5 {[%clk 0:01:30]} 26. Re3 {[%clk 0:01:38]}  Nxb3 {[%clk 0:01:30]} 27. Bf6 {[%clk 0:01:26]}  Qb6 {[%clk 0:01:27]} 28. Kf2 {[%clk 0:01:25]}  Nd4 {[%clk 0:01:18]} 29. Kf1 {[%clk 0:01:17]}  Nf5 {[%clk 0:01:15]} 30. Re4 {[%clk 0:01:13]}  Nxg3+ {[%clk 0:01:15]} 0-1


[Site "https://www.chess.com"]

[Event "Titled Tuesday Blitz November 14 Early 2023"]
[White "Skatchkov, Valery"]
[Black "Maksimovic, Bojan"]
[WhiteFideId "24195812"]
[BlackFideId "14408120"]
[WhiteElo "2594"]
[BlackElo "2800"]
[Result "0-1"]
[Round "9"]
[TimeControl "180+1"]
[Date "2023.11.14"]
[WhiteClock "0:00:44"]
[BlackClock "0:00:12"]
[Board "47"]

1. d4 {[%clk 0:02:56]}  g6 {[%clk 0:03:00]} 2. e4 {[%clk 0:02:55]}  Nf6 {[%clk 0:03:00]} 3. Nc3 {[%clk 0:02:55]}  d5 {[%clk 0:03:00]} 4. exd5 {[%clk 0:02:50]}  Nxd5 {[%clk 0:02:59]} 5. Bc4 {[%clk 0:02:38]}  Nxc3 {[%clk 0:02:58]} 6. Qf3 {[%clk 0:02:38]}  Bf5 {[%clk 0:02:57]} 7. bxc3 {[%clk 0:02:25]}  Nc6 {[%clk 0:02:51]} 8. Rb1 {[%clk 0:02:14]}  Qc8 {[%clk 0:01:55]} 9. g4 {[%clk 0:02:11]}  Be6 {[%clk 0:01:53]} 10. d5 {[%clk 0:02:11]}  Ne5 {[%clk 0:01:51]} 11. Bb5+ {[%clk 0:02:00]}  Bd7 {[%clk 0:01:17]} 12. Qe4 {[%clk 0:01:58]}  Bg7 {[%clk 0:01:11]} 13. Bf4 {[%clk 0:01:40]}  Nxg4 {[%clk 0:00:59]} 14. Ne2 {[%clk 0:01:41]}  O-O {[%clk 0:00:53]} 15. Bxd7 {[%clk 0:01:40]}  Qxd7 {[%clk 0:00:52]} 16. Rxb7 {[%clk 0:01:40]}  Nf6 {[%clk 0:00:51]} 17. Qd3 {[%clk 0:01:23]}  Qxd5 {[%clk 0:00:49]} 18. Qxd5 {[%clk 0:01:22]}  Nxd5 {[%clk 0:00:50]} 19. Bd2 {[%clk 0:01:22]}  Rfb8 {[%clk 0:00:46]} 20. Rb3 {[%clk 0:01:22]}  Nb6 {[%clk 0:00:42]} 21. O-O {[%clk 0:01:16]}  Nc4 {[%clk 0:00:39]} 22. Bf4 {[%clk 0:01:17]}  e5 {[%clk 0:00:39]} 23. Bg5 {[%clk 0:01:15]}  h6 {[%clk 0:00:35]} 24. Bc1 {[%clk 0:01:15]}  a5 {[%clk 0:00:32]} 25. Rd1 {[%clk 0:01:10]}  Rd8 {[%clk 0:00:21]} 26. Rxd8+ {[%clk 0:00:56]}  Rxd8 {[%clk 0:00:22]} 27. Rb5 {[%clk 0:00:57]}  Bf8 {[%clk 0:00:21]} 28. Kg2 {[%clk 0:00:51]}  f5 {[%clk 0:00:14]} 29. h4 {[%clk 0:00:50]}  Kf7 {[%clk 0:00:14]} 30. h5 {[%clk 0:00:50]}  g5 {[%clk 0:00:14]} 31. Ng3 {[%clk 0:00:49]}  Ke6 {[%clk 0:00:14]} 32. Be3 {[%clk 0:00:48]}  f4 {[%clk 0:00:13]} 33. Bc5 {[%clk 0:00:47]}  fxg3 {[%clk 0:00:13]} 34. Bxf8 {[%clk 0:00:47]}  Rxf8 {[%clk 0:00:12]} 35. fxg3 {[%clk 0:00:47]}  Ne3+ {[%clk 0:00:12]} 36. Kh2 {[%clk 0:00:44]}  Rf2+ {[%clk 0:00:12]} 0-1


[Site "https://www.chess.com"]